[Event "Titled Tuesday Blitz November 08 Early 2022"]
[White "Do Nascimento,Christian Almeida"]
[Black "Terzi, Alexei"]
[WhiteFideId "2143801"]
[BlackFideId "13505076"]
[WhiteElo "2079"]
[BlackElo "2172"]
[Result "1-0"]
[Round "11"]
[TimeControl "180+1"]
[Date "2022.11.09"]
[WhiteClock "0:00:13"]
[BlackClock "0:00:08"]

1. e4 {[%clk 0:03:00]}  e6 {[%clk 0:02:59]} 2. d4 {[%clk 0:03:00]}  d5 {[%clk 0:02:59]} 3. Nc3 {[%clk 0:02:58]}  Bb4 {[%clk 0:02:59]} 4. e5 {[%clk 0:02:57]}  Ne7 {[%clk 0:02:59]} 5. a3 {[%clk 0:02:56]}  Bxc3+ {[%clk 0:03:00]} 6. bxc3 {[%clk 0:02:57]}  c5 {[%clk 0:03:00]} 7. a4 {[%clk 0:02:51]}  Qa5 {[%clk 0:02:58]} 8. Qd2 {[%clk 0:02:51]}  Nbc6 {[%clk 0:02:50]} 9. Nf3 {[%clk 0:02:48]}  Bd7 {[%clk 0:02:35]} 10. Bd3 {[%clk 0:02:42]}  Rc8 {[%clk 0:02:29]} 11. O-O {[%clk 0:02:36]}  cxd4 {[%clk 0:02:27]} 12. cxd4 {[%clk 0:02:35]}  Qxd2 {[%clk 0:02:08]} 13. Bxd2 {[%clk 0:02:36]}  Nf5 {[%clk 0:02:05]} 14. Bxf5 {[%clk 0:02:22]}  exf5 {[%clk 0:02:06]} 15. Rfb1 {[%clk 0:02:20]}  Rc7 {[%clk 0:01:58]} 16. c4 {[%clk 0:01:48]}  Be6 {[%clk 0:01:56]} 17. c5 {[%clk 0:01:45]}  Kd7 {[%clk 0:01:45]} 18. a5 {[%clk 0:01:43]}  h6 {[%clk 0:01:39]} 19. h4 {[%clk 0:01:40]}  Rb8 {[%clk 0:01:37]} 20. Rb2 {[%clk 0:01:37]}  Rg8 {[%clk 0:01:23]} 21. Rab1 {[%clk 0:01:35]}  Kc8 {[%clk 0:01:23]} 22. Kf1 {[%clk 0:01:23]}  Bd7 {[%clk 0:01:23]} 23. Ke1 {[%clk 0:01:13]}  a6 {[%clk 0:01:22]} 24. Rb6 {[%clk 0:01:11]}  Nd8 {[%clk 0:01:22]} 25. Ng1 {[%clk 0:00:53]}  Ne6 {[%clk 0:01:20]} 26. Ne2 {[%clk 0:00:50]}  Rc6 {[%clk 0:01:08]} 27. Rxb7 {[%clk 0:00:48]}  Kd8 {[%clk 0:01:02]} 28. R1b6 {[%clk 0:00:39]}  Re8 {[%clk 0:00:36]} 29. Ra7 {[%clk 0:00:33]}  Nc7 {[%clk 0:00:34]} 30. Nc3 {[%clk 0:00:27]}  Ree6 {[%clk 0:00:17]} 31. Rb8+ {[%clk 0:00:22]}  Bc8 {[%clk 0:00:17]} 32. Rb6 {[%clk 0:00:20]}  Rg6 {[%clk 0:00:15]} 33. g3 {[%clk 0:00:20]}  Rge6 {[%clk 0:00:15]} 34. f4 {[%clk 0:00:20]}  Rg6 {[%clk 0:00:15]} 35. Kf2 {[%clk 0:00:20]}  Rge6 {[%clk 0:00:16]} 36. Bc1 {[%clk 0:00:16]}  h5 {[%clk 0:00:16]} 37. Ne2 {[%clk 0:00:12]}  Rg6 {[%clk 0:00:16]} 38. Ng1 {[%clk 0:00:13]}  Rge6 {[%clk 0:00:15]} 39. Nf3 {[%clk 0:00:13]}  f6 {[%clk 0:00:15]} 40. Bb2 {[%clk 0:00:13]}  Kd7 {[%clk 0:00:13]} 41. Bc3 {[%clk 0:00:10]}  Kd8 {[%clk 0:00:14]} 42. Bd2 {[%clk 0:00:10]}  Kd7 {[%clk 0:00:14]} 43. Be3 {[%clk 0:00:09]}  Kd8 {[%clk 0:00:14]} 44. Bd2 {[%clk 0:00:09]}  Kd7 {[%clk 0:00:14]} 45. Be1 {[%clk 0:00:10]}  Kd8 {[%clk 0:00:15]} 46. Kg2 {[%clk 0:00:10]}  Kd7 {[%clk 0:00:15]} 47. Kf2 {[%clk 0:00:11]}  Kd8 {[%clk 0:00:14]} 48. Ng1 {[%clk 0:00:12]}  Kd7 {[%clk 0:00:15]} 49. Ne2 {[%clk 0:00:12]}  Kd8 {[%clk 0:00:14]} 50. Nc1 {[%clk 0:00:13]}  Bd7 {[%clk 0:00:15]} 51. Rb8+ {[%clk 0:00:12]}  Bc8 {[%clk 0:00:15]} 52. Rb6 {[%clk 0:00:12]}  Bd7 {[%clk 0:00:14]} 53. Nd3 {[%clk 0:00:12]}  Bc8 {[%clk 0:00:14]} 54. Nb4 {[%clk 0:00:12]}  Rxb6 {[%clk 0:00:13]} 55. axb6 {[%clk 0:00:13]}  Nb5 {[%clk 0:00:11]} 56. Ra8 {[%clk 0:00:13]}  Kd7 {[%clk 0:00:10]} 57. c6+ {[%clk 0:00:12]}  Ke7 {[%clk 0:00:08]} 58. b7 {[%clk 0:00:12]}  Bxb7 {[%clk 0:00:08]} 59. cxb7 {[%clk 0:00:13]}  Rb6 {[%clk 0:00:08]} 60. Nxd5+ {[%clk 0:00:13]} 1-0


[Site "https://www.chess.com"]

[Event "Titled Tuesday Blitz November 08 Early 2022"]
[White "Estrada Nieto, Julian"]
[Black "Vlassov, Nikolai"]
[WhiteFideId "5101018"]
[BlackFideId "4103360"]
[WhiteElo "2221"]
[BlackElo "2324"]
[Result "0-1"]
[Round "11"]
[TimeControl "180+1"]
[Date "2022.11.09"]
[WhiteClock "0:00:06"]
[BlackClock "0:00:07"]

1. e4 {[%clk 0:03:00]}  Nc6 {[%clk 0:02:57]} 2. Nf3 {[%clk 0:03:00]}  d5 {[%clk 0:02:57]} 3. exd5 {[%clk 0:03:00]}  Qxd5 {[%clk 0:02:58]} 4. Nc3 {[%clk 0:02:58]}  Qa5 {[%clk 0:02:59]} 5. d4 {[%clk 0:02:58]}  Bg4 {[%clk 0:02:56]} 6. Bb5 {[%clk 0:02:57]}  O-O-O {[%clk 0:02:55]} 7. Bxc6 {[%clk 0:02:51]}  bxc6 {[%clk 0:02:56]} 8. h3 {[%clk 0:02:40]}  Qh5 {[%clk 0:02:55]} 9. Qe2 {[%clk 0:02:33]}  Kb7 {[%clk 0:02:53]} 10. Be3 {[%clk 0:02:28]}  Bxf3 {[%clk 0:02:43]} 11. gxf3 {[%clk 0:02:28]}  e6 {[%clk 0:02:41]} 12. O-O-O {[%clk 0:02:27]}  Bb4 {[%clk 0:02:40]} 13. Ne4 {[%clk 0:02:25]}  Qb5 {[%clk 0:02:34]} 14. Rd3 {[%clk 0:02:16]}  Nf6 {[%clk 0:02:19]} 15. Bd2 {[%clk 0:01:53]}  Ka8 {[%clk 0:01:52]} 16. Bxb4 {[%clk 0:01:48]}  Qxb4 {[%clk 0:01:52]} 17. Rb3 {[%clk 0:01:40]}  Qa5 {[%clk 0:01:27]} 18. Qc4 {[%clk 0:01:20]}  Qd5 {[%clk 0:01:25]} 19. Qa6 {[%clk 0:01:15]}  Rb8 {[%clk 0:01:25]} 20. Nc5 {[%clk 0:01:08]}  Rxb3 {[%clk 0:01:18]} 21. axb3 {[%clk 0:01:06]}  Rb8 {[%clk 0:01:18]} 22. Rd1 {[%clk 0:00:57]}  Nd7 {[%clk 0:00:55]} 23. Nxd7 {[%clk 0:00:54]}  Qxd7 {[%clk 0:00:54]} 24. Rd3 {[%clk 0:00:54]}  Rb6 {[%clk 0:00:52]} 25. Qc4 {[%clk 0:00:51]}  Qd5 {[%clk 0:00:52]} 26. Qxd5 {[%clk 0:00:45]}  cxd5 {[%clk 0:00:52]} 27. f4 {[%clk 0:00:45]}  g6 {[%clk 0:00:51]} 28. h4 {[%clk 0:00:41]}  h5 {[%clk 0:00:47]} 29. Kd2 {[%clk 0:00:39]}  Ra6 {[%clk 0:00:47]} 30. Rc3 {[%clk 0:00:38]}  Kb7 {[%clk 0:00:47]} 31. Rc5 {[%clk 0:00:37]}  c6 {[%clk 0:00:39]} 32. c4 {[%clk 0:00:34]}  Ra1 {[%clk 0:00:35]} 33. cxd5 {[%clk 0:00:33]}  cxd5 {[%clk 0:00:27]} 34. Rb5+ {[%clk 0:00:32]}  Kc6 {[%clk 0:00:27]} 35. Rc5+ {[%clk 0:00:32]}  Kd6 {[%clk 0:00:27]} 36. Rc8 {[%clk 0:00:27]}  Rb1 {[%clk 0:00:22]} 37. Rd8+ {[%clk 0:00:20]}  Ke7 {[%clk 0:00:19]} 38. Ra8 {[%clk 0:00:19]}  Rxb2+ {[%clk 0:00:19]} 39. Kc3 {[%clk 0:00:18]}  Ra2 {[%clk 0:00:17]} 40. b4 {[%clk 0:00:17]}  Kf6 {[%clk 0:00:15]} 41. b5 {[%clk 0:00:16]}  Ra5 {[%clk 0:00:11]} 42. Kb4 {[%clk 0:00:16]}  Ra1 {[%clk 0:00:11]} 43. Kc3 {[%clk 0:00:14]}  Rb1 {[%clk 0:00:10]} 44. Rxa7 {[%clk 0:00:11]}  Rxb5 {[%clk 0:00:10]} 45. Rc7 {[%clk 0:00:09]}  Rb1 {[%clk 0:00:10]} 46. Kd3 {[%clk 0:00:09]}  Rh1 {[%clk 0:00:10]} 47. Ke3 {[%clk 0:00:08]}  Rxh4 {[%clk 0:00:10]} 48. f3 {[%clk 0:00:09]}  Rh2 {[%clk 0:00:10]} 49. Rc8 {[%clk 0:00:08]}  Ra2 {[%clk 0:00:08]} 50. Rh8 {[%clk 0:00:07]}  Ra3+ {[%clk 0:00:08]} 51. Ke2 {[%clk 0:00:07]}  Kf5 {[%clk 0:00:09]} 52. Rh7 {[%clk 0:00:07]}  f6 {[%clk 0:00:10]} 53. Rf7 {[%clk 0:00:07]}  Rc3 {[%clk 0:00:08]} 54. Kf2 {[%clk 0:00:07]}  Rd3 {[%clk 0:00:08]} 55. Ke2 {[%clk 0:00:07]}  Rxd4 {[%clk 0:00:08]} 56. Rh7 {[%clk 0:00:07]}  Rxf4 {[%clk 0:00:08]} 57. Rg7 {[%clk 0:00:07]}  Ra4 {[%clk 0:00:08]} 58. Ke3 {[%clk 0:00:07]}  e5 {[%clk 0:00:09]} 59. Rg8 {[%clk 0:00:07]}  Ra3+ {[%clk 0:00:09]} 60. Kf2 {[%clk 0:00:07]}  d4 {[%clk 0:00:09]} 61. Rd8 {[%clk 0:00:08]}  h4 {[%clk 0:00:09]} 62. Kg2 {[%clk 0:00:08]}  g5 {[%clk 0:00:09]} 63. Rd6 {[%clk 0:00:08]}  Ra2+ {[%clk 0:00:09]} 64. Kh3 {[%clk 0:00:07]}  Rf2 {[%clk 0:00:07]} 65. Rxf6+ {[%clk 0:00:05]}  Kxf6 {[%clk 0:00:07]} 66. Kg4 {[%clk 0:00:05]}  d3 {[%clk 0:00:07]} 67. f4 {[%clk 0:00:05]}  Rxf4+ {[%clk 0:00:06]} 68. Kh3 {[%clk 0:00:06]}  d2 {[%clk 0:00:07]} 69. Kg2 {[%clk 0:00:05]}  d1=Q {[%clk 0:00:07]} 70. Kh3 {[%clk 0:00:06]}  Qh1# {[%clk 0:00:07]} 0-1


[Site "https://www.chess.com"]

[Event "Titled Tuesday Blitz November 08 Early 2022"]
[White "Gabrielian, Artur"]
[Black "Padmini, Rout"]
[WhiteFideId "4131002"]
[BlackFideId "5029295"]
[WhiteElo "2432"]
[BlackElo "2296"]
[Result "1-0"]
[Round "11"]
[TimeControl "180+1"]
[Date "2022.11.09"]
[WhiteClock "0:00:48"]
[BlackClock "0:00:05"]

1. d4 {[%clk 0:03:00]}  Nf6 {[%clk 0:02:58]} 2. c4 {[%clk 0:03:01]}  c5 {[%clk 0:02:58]} 3. d5 {[%clk 0:03:00]}  b5 {[%clk 0:02:58]} 4. cxb5 {[%clk 0:03:01]}  a6 {[%clk 0:02:58]} 5. bxa6 {[%clk 0:03:01]}  g6 {[%clk 0:02:55]} 6. Nc3 {[%clk 0:03:01]}  Bxa6 {[%clk 0:02:55]} 7. e4 {[%clk 0:03:01]}  Bxf1 {[%clk 0:02:55]} 8. Kxf1 {[%clk 0:03:02]}  d6 {[%clk 0:02:55]} 9. Nf3 {[%clk 0:03:02]}  Nbd7 {[%clk 0:02:52]} 10. g3 {[%clk 0:03:02]}  Bg7 {[%clk 0:02:52]} 11. Kg2 {[%clk 0:03:03]}  O-O {[%clk 0:02:52]} 12. a4 {[%clk 0:03:03]}  Qb6 {[%clk 0:02:39]} 13. Ra3 {[%clk 0:03:01]}  Rfb8 {[%clk 0:02:37]} 14. Qc2 {[%clk 0:03:01]}  Ng4 {[%clk 0:02:34]} 15. Nb5 {[%clk 0:02:55]}  Qb7 {[%clk 0:02:13]} 16. b3 {[%clk 0:02:52]}  Rc8 {[%clk 0:02:07]} 17. Bb2 {[%clk 0:02:37]}  Ngf6 {[%clk 0:01:50]} 18. Nd2 {[%clk 0:02:26]}  Ne5 {[%clk 0:01:17]} 19. Bxe5 {[%clk 0:02:24]}  dxe5 {[%clk 0:01:17]} 20. Nc4 {[%clk 0:02:24]}  Ne8 {[%clk 0:01:14]} 21. h4 {[%clk 0:02:16]}  h5 {[%clk 0:01:11]} 22. d6 {[%clk 0:02:14]}  Ra6 {[%clk 0:01:07]} 23. Rd1 {[%clk 0:02:09]}  Qd7 {[%clk 0:00:50]} 24. dxe7 {[%clk 0:02:03]}  Qxe7 {[%clk 0:00:51]} 25. Ra2 {[%clk 0:01:50]}  Bf8 {[%clk 0:00:43]} 26. Qc3 {[%clk 0:01:47]}  f6 {[%clk 0:00:42]} 27. Rad2 {[%clk 0:01:47]}  Ng7 {[%clk 0:00:35]} 28. Ne3 {[%clk 0:01:46]}  Ne6 {[%clk 0:00:34]} 29. Rd7 {[%clk 0:01:33]}  Qe8 {[%clk 0:00:34]} 30. Nd5 {[%clk 0:01:26]}  Nd4 {[%clk 0:00:34]} 31. Qc4 {[%clk 0:01:22]}  Kh8 {[%clk 0:00:30]} 32. Rb7 {[%clk 0:01:20]}  Qe6 {[%clk 0:00:14]} 33. Nbc7 {[%clk 0:01:10]}  Qg4 {[%clk 0:00:13]} 34. Rxd4 {[%clk 0:01:05]}  cxd4 {[%clk 0:00:12]} 35. f3 {[%clk 0:01:01]}  Qd7 {[%clk 0:00:10]} 36. Qxa6 {[%clk 0:01:01]}  Bd6 {[%clk 0:00:09]} 37. Qb5 {[%clk 0:00:58]}  Qxb5 {[%clk 0:00:07]} 38. axb5 {[%clk 0:00:54]}  f5 {[%clk 0:00:07]} 39. Ne6 {[%clk 0:00:48]}  Rc2+ {[%clk 0:00:05]} 40. Kf1 {[%clk 0:00:48]} 1-0


[Site "https://www.chess.com"]

[Event "Titled Tuesday Blitz November 08 Early 2022"]
[White "Galchenko, Matvey"]
[Black "Paravyan, David"]
[WhiteFideId "24175480"]
[BlackFideId "4194985"]
[WhiteElo "2403"]
[BlackElo "2546"]
[Result "0-1"]
[Round "11"]
[TimeControl "180+1"]
[Date "2022.11.08"]
[WhiteClock "0:00:51"]
[BlackClock "0:01:05"]

1. f4 {[%clk 0:03:00]}  Nf6 {[%clk 0:02:59]} 2. Nf3 {[%clk 0:02:59]}  d5 {[%clk 0:02:59]} 3. g3 {[%clk 0:03:00]}  e6 {[%clk 0:02:56]} 4. Bg2 {[%clk 0:03:00]}  Be7 {[%clk 0:02:57]} 5. O-O {[%clk 0:03:01]}  O-O {[%clk 0:02:58]} 6. d3 {[%clk 0:03:02]}  b5 {[%clk 0:02:56]} 7. e4 {[%clk 0:03:01]}  dxe4 {[%clk 0:02:56]} 8. dxe4 {[%clk 0:03:02]}  Bb7 {[%clk 0:02:56]} 9. e5 {[%clk 0:03:01]}  Bc5+ {[%clk 0:02:54]} 10. Kh1 {[%clk 0:03:01]}  Qxd1 {[%clk 0:02:54]} 11. Rxd1 {[%clk 0:03:01]}  Ng4 {[%clk 0:02:55]} 12. Rf1 {[%clk 0:02:52]}  Nf2+ {[%clk 0:02:46]} 13. Kg1 {[%clk 0:02:52]}  Nd3+ {[%clk 0:02:40]} 14. Kh1 {[%clk 0:02:53]}  Nf2+ {[%clk 0:02:12]} 15. Kg1 {[%clk 0:02:53]}  Rd8 {[%clk 0:02:07]} 16. Nc3 {[%clk 0:02:21]}  Nd1+ {[%clk 0:02:06]} 17. Kh1 {[%clk 0:02:20]}  Nf2+ {[%clk 0:02:05]} 18. Kg1 {[%clk 0:02:20]}  Ne4+ {[%clk 0:02:00]} 19. Kh1 {[%clk 0:02:21]}  Nxc3 {[%clk 0:02:01]} 20. bxc3 {[%clk 0:02:22]}  Nd7 {[%clk 0:01:59]} 21. a4 {[%clk 0:02:14]}  a6 {[%clk 0:01:57]} 22. Nd4 {[%clk 0:02:11]}  Bxg2+ {[%clk 0:01:56]} 23. Kxg2 {[%clk 0:02:12]}  Nb6 {[%clk 0:01:53]} 24. Nc6 {[%clk 0:02:08]}  Re8 {[%clk 0:01:45]} 25. axb5 {[%clk 0:02:07]}  axb5 {[%clk 0:01:46]} 26. Rxa8 {[%clk 0:01:46]}  Rxa8 {[%clk 0:01:47]} 27. Rd1 {[%clk 0:01:46]}  Nd5 {[%clk 0:01:46]} 28. Rd3 {[%clk 0:01:40]}  Ra2 {[%clk 0:01:42]} 29. Rd2 {[%clk 0:01:18]}  Kf8 {[%clk 0:01:40]} 30. Kf3 {[%clk 0:01:15]}  Ke8 {[%clk 0:01:37]} 31. Nd4 {[%clk 0:01:08]}  Bxd4 {[%clk 0:01:35]} 32. cxd4 {[%clk 0:01:09]}  Kd7 {[%clk 0:01:22]} 33. h3 {[%clk 0:01:09]}  b4 {[%clk 0:01:10]} 34. Ke4 {[%clk 0:00:56]}  Ra1 {[%clk 0:01:05]} 35. Bb2 {[%clk 0:00:51]}  Rb1 {[%clk 0:01:05]} 0-1


[Site "https://www.chess.com"]

[Event "Titled Tuesday Blitz November 08 Early 2022"]
[White "Gholami Orimi, Mahdi"]
[Black "Salinas Herrera, Pablo"]
[WhiteFideId "12558486"]
[BlackFideId "3407128"]
[WhiteElo "2330"]
[BlackElo "2557"]
[Result "1/2-1/2"]
[Round "11"]
[TimeControl "180+1"]
[Date "2022.11.08"]
[WhiteClock "0:00:17"]
[BlackClock "0:00:06"]

1. d4 {[%clk 0:03:00]}  d5 {[%clk 0:02:59]} 2. c4 {[%clk 0:03:00]}  c6 {[%clk 0:02:59]} 3. Nf3 {[%clk 0:03:00]}  Nf6 {[%clk 0:02:59]} 4. g3 {[%clk 0:03:01]}  Bf5 {[%clk 0:02:58]} 5. Qb3 {[%clk 0:03:00]}  Qb6 {[%clk 0:02:56]} 6. c5 {[%clk 0:03:00]}  Qxb3 {[%clk 0:02:56]} 7. axb3 {[%clk 0:03:01]}  e6 {[%clk 0:02:54]} 8. b4 {[%clk 0:03:01]}  h6 {[%clk 0:02:52]} 9. Nc3 {[%clk 0:03:01]}  Be7 {[%clk 0:02:24]} 10. b5 {[%clk 0:02:59]}  O-O {[%clk 0:02:24]} 11. Bf4 {[%clk 0:02:57]}  cxb5 {[%clk 0:02:18]} 12. Nxb5 {[%clk 0:02:52]}  Nc6 {[%clk 0:02:18]} 13. e3 {[%clk 0:02:47]}  Be4 {[%clk 0:02:16]} 14. Bg2 {[%clk 0:02:43]}  Nb4 {[%clk 0:02:07]} 15. Kd2 {[%clk 0:02:42]}  Nd3 {[%clk 0:01:57]} 16. Bd6 {[%clk 0:02:31]}  Bxd6 {[%clk 0:01:20]} 17. Nxd6 {[%clk 0:02:32]}  Nxf2 {[%clk 0:01:21]} 18. Rhf1 {[%clk 0:02:25]}  Bxf3 {[%clk 0:01:21]} 19. Bxf3 {[%clk 0:02:21]}  N2e4+ {[%clk 0:01:18]} 20. Bxe4 {[%clk 0:02:21]}  Nxe4+ {[%clk 0:01:19]} 21. Nxe4 {[%clk 0:02:21]}  dxe4 {[%clk 0:01:20]} 22. Ra4 {[%clk 0:02:18]}  f5 {[%clk 0:01:18]} 23. Rfa1 {[%clk 0:02:18]}  a6 {[%clk 0:01:18]} 24. Rb4 {[%clk 0:02:18]}  Rf7 {[%clk 0:01:17]} 25. Rb6 {[%clk 0:02:16]}  Re7 {[%clk 0:01:17]} 26. Ra4 {[%clk 0:02:07]}  Kf7 {[%clk 0:01:17]} 27. Rab4 {[%clk 0:02:03]}  Ra7 {[%clk 0:01:15]} 28. Kc3 {[%clk 0:02:04]}  Ke8 {[%clk 0:01:14]} 29. Rd6 {[%clk 0:02:04]}  Ra8 {[%clk 0:01:12]} 30. Rbb6 {[%clk 0:01:54]}  Kf7 {[%clk 0:01:09]} 31. d5 {[%clk 0:01:54]}  exd5 {[%clk 0:01:07]} 32. Rxd5 {[%clk 0:01:55]}  g6 {[%clk 0:01:04]} 33. Rdd6 {[%clk 0:01:55]}  Rg8 {[%clk 0:01:04]} 34. Rf6+ {[%clk 0:01:54]}  Ke8 {[%clk 0:01:02]} 35. Kc4 {[%clk 0:01:41]}  Rd7 {[%clk 0:00:58]} 36. b4 {[%clk 0:01:40]}  Kd8 {[%clk 0:00:51]} 37. Rxg6 {[%clk 0:01:17]}  Rxg6 {[%clk 0:00:50]} 38. Rxg6 {[%clk 0:01:18]}  Rd3 {[%clk 0:00:27]} 39. Rf6 {[%clk 0:01:12]}  Rxe3 {[%clk 0:00:26]} 40. Rxf5 {[%clk 0:01:13]}  Re2 {[%clk 0:00:26]} 41. Rh5 {[%clk 0:01:13]}  Rc2+ {[%clk 0:00:20]} 42. Kd4 {[%clk 0:01:12]}  Rb2 {[%clk 0:00:19]} 43. Kxe4 {[%clk 0:01:12]}  Rxb4+ {[%clk 0:00:19]} 44. Kd5 {[%clk 0:01:12]}  a5 {[%clk 0:00:19]} 45. Rxh6 {[%clk 0:01:12]}  Rb2 {[%clk 0:00:18]} 46. h4 {[%clk 0:01:07]}  Rg2 {[%clk 0:00:17]} 47. Rg6 {[%clk 0:01:06]}  a4 {[%clk 0:00:17]} 48. Ke4 {[%clk 0:01:07]}  a3 {[%clk 0:00:17]} 49. Kf3 {[%clk 0:01:06]}  a2 {[%clk 0:00:11]} 50. Rg8+ {[%clk 0:01:07]}  Ke7 {[%clk 0:00:09]} 51. Ra8 {[%clk 0:01:08]}  Rc2 {[%clk 0:00:08]} 52. Kg4 {[%clk 0:01:05]}  Kf6 {[%clk 0:00:07]} 53. Ra7 {[%clk 0:00:50]}  Kg6 {[%clk 0:00:07]} 54. h5+ {[%clk 0:00:46]}  Kh6 {[%clk 0:00:07]} 55. Kh4 {[%clk 0:00:40]}  Rh2+ {[%clk 0:00:07]} 56. Kg4 {[%clk 0:00:40]}  Rc2 {[%clk 0:00:08]} 57. Ra8 {[%clk 0:00:17]}  Rc4+ {[%clk 0:00:08]} 58. Kh3 {[%clk 0:00:17]}  Kxh5 {[%clk 0:00:07]} 59. Rxa2 {[%clk 0:00:17]}  Rxc5 {[%clk 0:00:07]} 60. Ra7 {[%clk 0:00:17]}  Rb5 {[%clk 0:00:06]} 61. Ra8 {[%clk 0:00:17]} 1/2-1/2


[Site "https://www.chess.com"]

[Event "Titled Tuesday Blitz November 08 Early 2022"]
[White "Goncalves, Davi Sulzbacher"]
[Black "Gheorghiu, Calin"]
[WhiteFideId "2154510"]
[BlackFideId "1200305"]
[WhiteElo "2182"]
[BlackElo "2225"]
[Result "0-1"]
[Round "11"]
[TimeControl "180+1"]
[Date "2022.11.09"]
[WhiteClock "0:00:09"]
[BlackClock "0:00:07"]

1. b3 {[%clk 0:03:00]}  e5 {[%clk 0:02:58]} 2. Bb2 {[%clk 0:03:00]}  Nc6 {[%clk 0:02:58]} 3. e3 {[%clk 0:03:01]}  Nge7 {[%clk 0:02:55]} 4. Ne2 {[%clk 0:03:01]}  Ng6 {[%clk 0:02:55]} 5. g3 {[%clk 0:02:59]}  d5 {[%clk 0:02:55]} 6. Bg2 {[%clk 0:02:58]}  Be7 {[%clk 0:02:55]} 7. h4 {[%clk 0:02:58]}  h5 {[%clk 0:02:53]} 8. c4 {[%clk 0:02:55]}  Be6 {[%clk 0:02:47]} 9. Nbc3 {[%clk 0:02:41]}  d4 {[%clk 0:02:45]} 10. exd4 {[%clk 0:02:33]}  exd4 {[%clk 0:02:44]} 11. Nb5 {[%clk 0:02:25]}  Bf6 {[%clk 0:02:06]} 12. Bxc6+ {[%clk 0:02:01]}  bxc6 {[%clk 0:02:01]} 13. Nbxd4 {[%clk 0:02:01]}  Bg4 {[%clk 0:01:58]} 14. Bc3 {[%clk 0:01:21]}  O-O {[%clk 0:01:44]} 15. Nc2 {[%clk 0:01:10]}  Qd3 {[%clk 0:01:15]} 16. Ne3 {[%clk 0:01:01]}  Bxc3 {[%clk 0:01:13]} 17. dxc3 {[%clk 0:00:59]}  Bxe2 {[%clk 0:01:09]} 18. Qxd3 {[%clk 0:00:45]}  Bxd3 {[%clk 0:01:08]} 19. O-O-O {[%clk 0:00:43]}  Rad8 {[%clk 0:01:08]} 20. f4 {[%clk 0:00:38]}  Rfe8 {[%clk 0:01:04]} 21. Rhe1 {[%clk 0:00:31]}  Ne7 {[%clk 0:00:52]} 22. Nd5 {[%clk 0:00:27]}  Nxd5 {[%clk 0:00:36]} 23. Rxe8+ {[%clk 0:00:24]}  Rxe8 {[%clk 0:00:37]} 24. Rxd3 {[%clk 0:00:19]}  Re3 {[%clk 0:00:36]} 25. Kd2 {[%clk 0:00:16]}  Rxd3+ {[%clk 0:00:32]} 26. Kxd3 {[%clk 0:00:17]}  Nf6 {[%clk 0:00:32]} 27. Kd4 {[%clk 0:00:17]}  Nd7 {[%clk 0:00:25]} 28. b4 {[%clk 0:00:17]}  Kf8 {[%clk 0:00:15]} 29. a4 {[%clk 0:00:18]}  Ke7 {[%clk 0:00:14]} 30. a5 {[%clk 0:00:16]}  a6 {[%clk 0:00:14]} 31. b5 {[%clk 0:00:12]}  Nb8 {[%clk 0:00:14]} 32. Kc5 {[%clk 0:00:08]}  cxb5 {[%clk 0:00:12]} 33. cxb5 {[%clk 0:00:08]}  Kd7 {[%clk 0:00:12]} 34. b6 {[%clk 0:00:07]}  Nc6 {[%clk 0:00:09]} 35. b7 {[%clk 0:00:05]}  Nb8 {[%clk 0:00:09]} 36. c4 {[%clk 0:00:04]}  g6 {[%clk 0:00:08]} 37. f5 {[%clk 0:00:03]}  gxf5 {[%clk 0:00:08]} 38. Kd5 {[%clk 0:00:04]}  c6+ {[%clk 0:00:08]} 39. Ke5 {[%clk 0:00:04]}  Kc7 {[%clk 0:00:08]} 40. Kxf5 {[%clk 0:00:05]}  Kxb7 {[%clk 0:00:09]} 41. Kg5 {[%clk 0:00:05]}  c5 {[%clk 0:00:08]} 42. Kxh5 {[%clk 0:00:06]}  Nc6 {[%clk 0:00:08]} 43. Kg5 {[%clk 0:00:06]}  Nxa5 {[%clk 0:00:09]} 44. h5 {[%clk 0:00:07]}  Nxc4 {[%clk 0:00:09]} 45. h6 {[%clk 0:00:07]}  Ne5 {[%clk 0:00:10]} 46. Kf6 {[%clk 0:00:07]}  c4 {[%clk 0:00:06]} 47. h7 {[%clk 0:00:06]}  Ng6 {[%clk 0:00:05]} 48. Kxf7 {[%clk 0:00:06]}  Nh8+ {[%clk 0:00:05]} 49. Kg7 {[%clk 0:00:07]}  c3 {[%clk 0:00:06]} 50. Kxh8 {[%clk 0:00:08]}  c2 {[%clk 0:00:06]} 51. Kg8 {[%clk 0:00:08]}  c1=Q {[%clk 0:00:07]} 52. h8=Q {[%clk 0:00:08]}  Qc8+ {[%clk 0:00:07]} 53. Kh7 {[%clk 0:00:08]}  Qh3+ {[%clk 0:00:07]} 54. Kg8 {[%clk 0:00:08]}  Qxg3+ {[%clk 0:00:07]} 55. Kf8 {[%clk 0:00:09]}  Qb8+ {[%clk 0:00:07]} 0-1


[Site "https://www.chess.com"]

[Event "Titled Tuesday Blitz November 08 Early 2022"]
[White "Goryachkina, Aleksandra"]
[Black "Shipov, Sergei"]
[WhiteFideId "4147103"]
[BlackFideId "4113624"]
[WhiteElo "2484"]
[BlackElo "2799"]
[Result "1/2-1/2"]
[Round "11"]
[TimeControl "180+1"]
[Date "2022.11.08"]
[WhiteClock "0:00:21"]
[BlackClock "0:01:22"]

1. e4 {[%clk 0:02:59]}  e6 {[%clk 0:02:59]} 2. d4 {[%clk 0:02:59]}  d5 {[%clk 0:02:59]} 3. Nc3 {[%clk 0:02:59]}  Bb4 {[%clk 0:02:59]} 4. exd5 {[%clk 0:02:59]}  exd5 {[%clk 0:02:59]} 5. Bd3 {[%clk 0:02:59]}  Nc6 {[%clk 0:02:59]} 6. Ne2 {[%clk 0:02:59]}  Nge7 {[%clk 0:02:58]} 7. O-O {[%clk 0:02:58]}  O-O {[%clk 0:02:58]} 8. a3 {[%clk 0:02:57]}  Ba5 {[%clk 0:02:58]} 9. Bg5 {[%clk 0:02:42]}  f6 {[%clk 0:02:58]} 10. Bf4 {[%clk 0:02:38]}  Bf5 {[%clk 0:02:57]} 11. Ng3 {[%clk 0:02:31]}  Bg6 {[%clk 0:02:54]} 12. Nce2 {[%clk 0:02:30]}  Qd7 {[%clk 0:02:54]} 13. c3 {[%clk 0:02:26]}  Rae8 {[%clk 0:02:52]} 14. Qc2 {[%clk 0:02:17]}  Nd8 {[%clk 0:02:49]} 15. Rae1 {[%clk 0:02:10]}  Ne6 {[%clk 0:02:46]} 16. Bd2 {[%clk 0:02:09]}  c6 {[%clk 0:02:46]} 17. Nf4 {[%clk 0:02:08]}  Nxf4 {[%clk 0:02:44]} 18. Bxf4 {[%clk 0:02:07]}  Bxd3 {[%clk 0:02:31]} 19. Qxd3 {[%clk 0:02:07]}  Ng6 {[%clk 0:02:31]} 20. Bd2 {[%clk 0:01:56]}  Nh4 {[%clk 0:02:30]} 21. Rxe8 {[%clk 0:01:50]}  Rxe8 {[%clk 0:02:30]} 22. Re1 {[%clk 0:01:50]}  Rxe1+ {[%clk 0:02:29]} 23. Bxe1 {[%clk 0:01:50]}  Bc7 {[%clk 0:02:29]} 24. Qe2 {[%clk 0:01:30]}  g6 {[%clk 0:02:25]} 25. f3 {[%clk 0:01:26]}  Kf7 {[%clk 0:02:20]} 26. Nf1 {[%clk 0:01:18]}  Nf5 {[%clk 0:02:17]} 27. Bg3 {[%clk 0:01:09]}  Nxg3 {[%clk 0:02:15]} 28. hxg3 {[%clk 0:01:07]}  h5 {[%clk 0:02:14]} 29. Kf2 {[%clk 0:01:06]}  Qe6 {[%clk 0:02:10]} 30. Qxe6+ {[%clk 0:01:05]}  Kxe6 {[%clk 0:02:11]} 31. Ne3 {[%clk 0:01:02]}  Bd6 {[%clk 0:02:10]} 32. g4 {[%clk 0:00:52]}  h4 {[%clk 0:01:57]} 33. Ke2 {[%clk 0:00:51]}  a6 {[%clk 0:01:56]} 34. a4 {[%clk 0:00:48]}  b5 {[%clk 0:01:52]} 35. axb5 {[%clk 0:00:48]}  axb5 {[%clk 0:01:53]} 36. b4 {[%clk 0:00:44]}  Bf4 {[%clk 0:01:48]} 37. Kd3 {[%clk 0:00:31]}  f5 {[%clk 0:01:38]} 38. gxf5+ {[%clk 0:00:26]}  gxf5 {[%clk 0:01:39]} 39. Nd1 {[%clk 0:00:26]}  Bg3 {[%clk 0:01:37]} 40. Ke3 {[%clk 0:00:24]}  Bd6 {[%clk 0:01:24]} 41. Nf2 {[%clk 0:00:23]}  Kf6 {[%clk 0:01:25]} 42. Nh3 {[%clk 0:00:22]}  Kg6 {[%clk 0:01:23]} 43. Kd3 {[%clk 0:00:20]}  Kf6 {[%clk 0:01:21]} 44. Ke3 {[%clk 0:00:20]}  Kg6 {[%clk 0:01:21]} 45. Kd3 {[%clk 0:00:21]}  Kf6 {[%clk 0:01:22]} 46. Ke3 {[%clk 0:00:21]} 1/2-1/2


[Site "https://www.chess.com"]